{"text_format":"1","workbook":"xlsx","n_sheets":7,"sheets":["Лист1","услуги","легковой","микроавтобус","скидка","ТипАвто","радиус"],"not_rendered":{"charts":0,"images":8,"macros":1,"external_links":0,"defined_names":0,"comments":1,"pivot_tables":0},"unopened":[],"bounds":{"document_bytes":16777216,"sheet_cells":100000,"rows_first":2000,"rows_last":500,"rows_between":2000,"halvings":0,"cell_chars":16384,"cell_head_chars":4096},"cells_cut":0,"cells_raw":0,"read":"whole","date_system":"1900"}

{"sheet":"Лист1","index":0,"n_rows":12,"n_cols":4,"rows_kept":12,"cut":false,"hidden":false,"merged":[]}
[3,1,{"$error":"#N/A"},0]
[]
[]
[]
[]
[]
[]
[]
[null,null,""]
["начислено:",0," за кол-во",0]
[]
["к оплате:",0,"скидка, %"]

{"sheet":"услуги","index":1,"n_rows":15,"n_cols":2,"rows_kept":15,"cut":false,"hidden":false,"merged":[]}
["снятие-установка",1]
["снятие-установка спарка",2]
["демонтаж",3]
["монтаж",4]
["балансировка стального диска",5]
["балансировка литого диска",6]
["балансировка без центрального отверстия стального диска",7]
["балансировка без центрального отверстия литого диска",8]
["проверка балансировки, биения",9]
["замена вентиля",10]
["замена вентиля никелированного",11]
["замена вентиля скрытого",12]
["доплата за датчик давления",13]
["оптимизация",14]
["установка камеры",15]

{"sheet":"легковой","index":2,"n_rows":16,"n_cols":7,"rows_kept":16,"cut":false,"hidden":false,"merged":[]}
["услуга",{"$f":"радиус!A1","v":"12-14"},{"$f":"радиус!A3","v":"16"},{"$f":"радиус!A3","v":"16"},{"$f":"радиус!A4","v":"17"},{"$f":"радиус!A5","v":"18"},{"$f":"радиус!A6","v":"19"}]
[{"$f":"услуги!A1","v":"снятие-установка"},70,75,80,85,90,95]
[{"$f":"услуги!A2","v":"снятие-установка спарка"},0,0,0,0,0,0]
[{"$f":"услуги!A3","v":"демонтаж"},60,65,70,75,80,85]
[{"$f":"услуги!A4","v":"монтаж"},60,65,70,75,80,85]
[{"$f":"услуги!A5","v":"балансировка стального диска"},125,130,135,140,145]
[{"$f":"услуги!A6","v":"балансировка литого диска"},150,155,160,165,180,275]
[{"$f":"услуги!A7","v":"балансировка без центрального отверстия стального диска"},225,230,235,240,245,250]
[{"$f":"услуги!A8","v":"балансировка без центрального отверстия литого диска"},250,255,260,265,270,275]
[{"$f":"услуги!A9","v":"проверка балансировки, биения"},60,65,70,75,80,85]
[{"$f":"услуги!A10","v":"замена вентиля"},55,55,55,55,55,55]
[{"$f":"услуги!A11","v":"замена вентиля никелированного"},75,75,75,75,75,75]
[{"$f":"услуги!A12","v":"замена вентиля скрытого"},175,175,175,175,175,175]
[{"$f":"услуги!A13","v":"доплата за датчик давления"},115,115,115,115,115,115]
[{"$f":"услуги!A14","v":"оптимизация"},180,195,210,225,240,255]
[{"$f":"услуги!A15","v":"установка камеры"},50,50,50,0,0,0]

{"sheet":"микроавтобус","index":3,"n_rows":16,"n_cols":7,"rows_kept":16,"cut":false,"hidden":false,"merged":[]}
["услуга",{"$f":"радиус!A1","v":"12-14"},{"$f":"радиус!A3","v":"16"},{"$f":"радиус!A3","v":"16"},{"$f":"радиус!A4","v":"17"},{"$f":"радиус!A5","v":"18"},{"$f":"радиус!A6","v":"19"}]
[{"$f":"услуги!A1","v":"снятие-установка"},85,90,95,100,105,110]
[{"$f":"услуги!A2","v":"снятие-установка спарка"},130,135,140,145,150,155]
[{"$f":"услуги!A3","v":"демонтаж"},65,70,75,80,85,90]
[{"$f":"услуги!A4","v":"монтаж"},65,70,75,80,85,90]
[{"$f":"услуги!A5","v":"балансировка стального диска"},135,150,165,180,195,205]
[{"$f":"услуги!A6","v":"балансировка литого диска"},155,170,185,200,215,280]
[{"$f":"услуги!A7","v":"балансировка без центрального отверстия стального диска"},0,0,0,0,0,0]
[{"$f":"услуги!A8","v":"балансировка без центрального отверстия литого диска"},0,0,0,0,0,0]
[{"$f":"услуги!A9","v":"проверка балансировки, биения"},65,70,75,80,85,90]
[{"$f":"услуги!A10","v":"замена вентиля"},55,55,55,55,55,55]
[{"$f":"услуги!A11","v":"замена вентиля никелированного"},75,75,75,75,75,75]
[{"$f":"услуги!A12","v":"замена вентиля скрытого"},175,175,175,175,175,175]
[{"$f":"услуги!A13","v":"доплата за датчик давления"},115,115,115,115,115,115]
[{"$f":"услуги!A14","v":"оптимизация"},195,210,225,240,255,270]
[{"$f":"услуги!A15","v":"установка камеры"},50,0,50,0,0,0]

{"sheet":"скидка","index":4,"n_rows":4,"n_cols":1,"rows_kept":4,"cut":false,"hidden":false,"merged":[]}
[0]
[5]
[10]
[15]

{"sheet":"ТипАвто","index":5,"n_rows":2,"n_cols":2,"rows_kept":2,"cut":false,"hidden":false,"merged":[]}
["легковые автомашины и кроссоверы",1]
["автошины для джипов и микроавтобусов",2]

{"sheet":"радиус","index":6,"n_rows":6,"n_cols":2,"rows_kept":6,"cut":false,"hidden":false,"merged":[]}
["12-14",1]
["15",2]
["16",3]
["17",4]
["18",5]
["19",6]